bitfinex-derivatives/quotes_ETHF0:USTF0_20250427
["timestamp","ask_amount","ask_price","bid_price","bid_amount"]
[1745783161445,2.425,1806.6,1806.5,1.10674]
[1745783164238,1.5995,1806.6,1806.5,1.10674]
[1745783164439,1.5995,1806.6,1806.5,2.70954]
[1745783165035,3.533,1806.7,1806.5,2.70954]
[1745783165036,0.8371,1806.8,1806.5,1.6028]
[1745783165241,2.5683,1806.8,1806.7,1.10663]
[1745783165636,2.5683,1806.8,1806.7,2.76193]
[1745783166136,6.2903,1806.8,1806.7,2.76193]
[1745783168543,5.4532,1806.8,1806.7,2.76193]
[1745783168734,3.722,1806.8,1806.7,2.76193]
[1745783169336,5.2978,1806.8,1806.7,2.76193]
[1745783172142,3.04136882,1806.8,1806.7,7.76193]
[1745783172554,3.04136882,1806.8,1806.7,9.46733]
[1745783176953,3.04136882,1806.8,1806.7,4.46733]
[1745783177358,3.04136882,1806.8,1806.7,0.8429]
[1745783177658,3.04136882,1806.8,1806.7,1.94953]
[1745783178053,4.67156882,1806.8,1806.7,1.94953]
[1745783178755,1.10667,1806.7,1806.5,1.10673]
[1745783178954,1.10671,1806.6,1806.4,5.10337]
[1745783179150,1.6685,1806.5,1806.4,1.89557]
[1745783179362,2.77525,1806.5,1806.2,6.7338]
[1745783179659,0.7904,1806.4,1806.3,1.10686]
[1745783179859,2.4589,1806.4,1806.3,1.10686]
[1745783182257,2.4589,1806.4,1806.2,5.16231]
[1745783182464,2.79594,1806.3,1806.0,3.2078]
[1745783182664,1.689,1806.2,1806.1,1.10698]
[1745783188264,1.689,1806.2,1806.1,1.107]
[1745783197061,5.411,1806.2,1806.1,1.107]
[1745783200764,6.51794,1806.2,1806.1,1.107]
[1745783202674,5.411,1806.2,1806.1,1.107]
[1745783202972,6.51794,1806.2,1806.1,1.107]
[1745783203873,5.411,1806.2,1806.1,1.107]
[1745783204061,1.689,1806.2,1806.1,1.107]
[1745783205172,5.411,1806.2,1806.1,1.107]
[1745783205474,6.51794,1806.2,1806.1,1.107]
[1745783206167,5.411,1806.2,1806.1,1.107]
[1745783207977,5.411,1806.2,1806.1,1.9279]
[1745783209276,6.51794,1806.2,1806.1,1.9279]
[1745783209463,6.51794,1806.2,1806.1,1.107]
[1745783212677,5.411,1806.2,1806.1,1.107]
[1745783214074,6.51794,1806.2,1806.1,1.107]
[1745783214376,5.411,1806.2,1806.1,1.107]
[1745783216379,8.6188,1806.2,1806.1,1.107]
[1745783219278,4.8968,1806.2,1806.1,1.107]
[1745783220078,8.6188,1806.2,1806.1,1.107]
[1745783223179,6.9298,1806.2,1806.1,1.107]
[1745783224183,9.203,1806.4,1806.3,1.10688]
[1745783224480,6.7338,1806.4,1806.3,1.10688]
[1745783224880,6.7338,1806.4,1806.3,2.67788]
[1745783229671,3.526,1806.4,1806.3,2.67788]
[1745783232985,1.6787,1806.5,1806.4,1.10682]
[1745783233186,1.6787,1806.5,1806.4,2.77692]
[1745783235186,4.0562,1806.6,1806.5,1.10675]
[1745783235386,4.0562,1806.6,1806.5,4.40845]
[1745783235583,5.7392,1806.6,1806.5,4.40845]
[1745783236088,9.4612,1806.6,1806.5,4.40845]
[1745783238687,9.4612,1806.6,1806.5,1.90275]
[1745783241691,6.2534,1806.6,1806.5,1.90275]
[1745783241889,9.4612,1806.6,1806.5,1.90275]
[1745783245097,10.56789,1806.6,1806.5,1.90275]
[1745783245390,9.4612,1806.6,1806.5,1.90275]
[1745783247193,10.56789,1806.6,1806.5,1.90275]
[1745783247791,9.4612,1806.6,1806.5,1.90275]
[1745783249483,3.722,1806.6,1806.5,1.90275]
[1745783249683,3.722,1806.6,1806.5,6.90275]
[1745783249888,3.722,1806.6,1806.5,10.11055]
[1745783250083,1.618,1806.9,1806.5,13.83255]
[1745783250292,1.618,1806.9,1806.8,1.10657]
[1745783251090,5.34,1806.9,1806.8,1.10657]
[1745783251293,5.34,1806.9,1806.8,1.91067]
[1745783262198,3.722,1806.9,1806.8,1.91067]
[1745783269699,5.3622,1806.9,1806.8,1.91067]
[1745783277101,3.722,1806.9,1806.8,1.91067]
[1745783277908,3.722,1806.9,1806.8,6.91067]
[1745783280108,3.722,1806.9,1806.8,1.91067]
[1745783285011,5.4242,1806.9,1806.8,1.91067]
[1745783303731,5.4242,1806.9,1806.8,1.10657]
[1745783316133,5.4242,1806.9,1806.8,1.93227]
[1745783317536,5.4242,1806.9,1806.8,1.10657]
[1745783318841,6.2466,1806.9,1806.8,1.10657]
[1745783319640,7.35311,1806.9,1806.8,1.10657]
[1745783319933,7.89761,1806.9,1806.8,1.10657]
[1745783320538,6.7911,1806.9,1806.8,1.10657]
[1745783320732,7.89761,1806.9,1806.8,1.10657]
[1745783320927,6.7911,1806.9,1806.8,1.10657]
[1745783321741,6.79492175,1806.9,1806.8,1.10657]
[1745783323531,6.25042175,1806.9,1806.8,1.10657]
[1745783327142,2.52842175,1806.9,1806.8,1.10657]
[1745783327740,2.52842175,1806.9,1806.8,1.96287]
[1745783329041,6.25042175,1806.9,1806.8,1.96287]
[1745783331642,5.42802175,1806.9,1806.8,1.96287]
[1745783331853,3.72582175,1806.9,1806.8,1.96287]
[1745783332348,3.72582175,1806.9,1806.8,3.65327]
[1745783333048,2.58997175,1806.9,1806.8,8.65327]
[1745783333345,2.58997175,1806.9,1806.8,3.65327]
[1745783336949,2.58997175,1806.9,1806.8,1.10657]
[1745783337150,3.39877175,1806.9,1806.8,1.10657]
[1745783337350,4.50529175,1806.9,1806.7,1.10661]
[1745783337550,1.5766,1806.8,1806.7,1.10661]
[1745783338750,1.5766,1806.8,1806.7,1.10663]
[1745783339055,5.2986,1806.8,1806.7,1.10663]
[1745783340045,6.40517,1806.8,1806.6,1.93294]
[1745783340352,1.5766,1806.7,1806.6,1.93294]
[1745783341149,5.2986,1806.7,1806.6,1.93294]
[1745783343153,1.5766,1806.7,1806.6,3.64064]
[1745783347654,0.8088,1806.9,1806.6,2.534]
[1745783347857,2.4687,1806.9,1806.7,3.56919]
[1745783348054,6.1907,1806.9,1806.7,2.4626]
[1745783348258,1.6599,1806.8,1806.7,2.4626]
[1745783348554,1.6599,1806.8,1806.7,3.56923]
[1745783349146,5.3819,1806.8,1806.7,3.56923]
[1745783353363,5.3819,1806.8,1806.7,1.10663]
[1745783353773,8.5897,1806.8,1806.7,1.10663]
[1745783355363,8.5897,1806.8,1806.7,1.93003]
[1745783355569,8.5897,1806.8,1806.7,3.50683]
[1745783356766,5.3819,1806.8,1806.7,3.50683]
[1745783361971,3.722,1806.8,1806.7,3.50683]
[1745783366175,5.3891,1806.8,1806.7,3.50683]
[1745783366875,10.3891,1806.8,1806.6,0.8263]
[1745783367181,1.1067,1806.6,1806.4,1.10677]
[1745783367474,1.6671,1806.5,1806.4,1.10677]
[1745783368068,8.5969,1806.5,1806.2,2.6869]
[1745783368278,0.8336,1806.4,1806.3,1.10687]
[1745783368469,2.4735,1806.4,1806.3,1.10687]
[1745783370085,6.1955,1806.4,1806.3,1.10687]
[1745783370287,6.1955,1806.4,1806.2,1.1069]
[1745783370490,1.6399,1806.3,1806.2,1.1069]
[1745783377298,5.3619,1806.3,1806.2,1.1069]
[1745783379197,1.6399,1806.3,1806.2,1.1069]
[1745783380800,4.8477,1806.3,1806.1,0.8189]
[1745783381007,5.95459,1806.3,1806.1,1.92586]
[1745783381301,1.6044,1806.2,1806.1,1.92586]
[1745783383996,2.4564,1806.2,1806.1,1.92586]
[1745783389199,6.1784,1806.2,1806.1,1.92586]
[1745783391207,2.4564,1806.2,1806.1,1.92586]
[1745783391709,2.4564,1806.2,1806.1,2.74706]
[1745783393905,3.2078,1806.3,1806.2,1.10694]
[1745783394101,4.8438,1806.3,1806.2,2.80984]
[1745783394911,1.636,1806.3,1806.2,2.80984]
[1745783395123,5.358,1806.3,1806.2,2.80984]
[1745783398116,1.636,1806.3,1806.2,2.80984]
[1745783401809,6.7208,1806.4,1806.3,1.10688]
[1745783402010,6.7208,1806.4,1806.3,3.64048]
[1745783402915,3.513,1806.4,1806.3,3.64048]
[1745783403822,4.067,1806.6,1806.5,1.10675]
[1745783404311,5.778,1806.6,1806.5,1.10675]
[1745783404512,5.778,1806.6,1806.5,1.92945]
[1745783405210,5.778,1806.6,1806.4,3.63687]
[1745783405211,6.88469,1806.6,1806.4,3.63687]
[1745783405411,1.5928,1806.5,1806.4,3.63687]
[1745783406621,1.5928,1806.5,1806.4,1.92207]
[1745783409323,5.3148,1806.5,1806.4,1.92207]
[1745783410020,1.10688,1806.4,1806.1,3.2078]
[1745783410226,1.10689,1806.3,1806.2,1.10693]
[1745783410527,1.10689,1806.3,1806.1,1.95985]
[1745783410725,1.739,1806.2,1806.1,1.95985]
[1745783411722,1.739,1806.2,1806.1,1.10695]
[1745783411923,1.739,1806.2,1805.9,0.8618]
[1745783412125,0.7837,1806.1,1806.0,1.10701]
[1745783412523,2.5227,1806.1,1806.0,1.91351]
[1745783413124,6.2447,1806.1,1806.0,3.50891]
[1745783413623,5.461,1806.1,1806.0,3.50891]
[1745783413833,2.4162,1806.1,1806.0,11.71671]
[1745783414126,4.8813,1806.6,1806.5,1.10675]
[1745783414922,4.8813,1806.6,1806.5,2.77815]
[1745783415724,5.6926,1806.6,1806.5,2.77815]
[1745783415927,5.6926,1806.6,1806.5,1.10675]
[1745783420227,9.4146,1806.6,1806.5,1.10675]
[1745783424632,1.10679,1806.5,1806.3,1.10683]
[1745783424832,7.82462,1806.4,1806.3,1.10683]
[1745783425234,12.1658,1806.4,1806.3,1.10683]
[1745783425639,13.27265,1806.4,1806.2,1.10688]
[1745783425840,2.3954,1806.3,1806.2,1.10694]
[1745783426335,6.1174,1806.3,1806.2,1.10694]
[1745783430233,2.3954,1806.3,1806.2,1.10694]
[1745783432142,6.1174,1806.3,1806.2,1.10694]
[1745783433240,2.3954,1806.3,1806.2,1.10694]
[1745783434248,2.3954,1806.3,1806.2,3.64394]
[1745783435142,6.1174,1806.3,1806.2,3.64394]
[1745783439444,3.722,1806.3,1806.2,8.64394]
[1745783439650,3.511,1806.9,1806.8,1.10657]
[1745783439851,5.9715,1806.9,1806.8,1.10657]
[1745783440344,5.1628,1806.9,1806.8,1.89487]
[1745783440553,3.511,1806.9,1806.8,3.75917]
[1745783441149,7.233,1806.9,1806.8,3.75917]
[1745783441652,3.722,1806.9,1806.8,3.75917]
[1745783462366,4.5331,1806.9,1806.8,3.75917]
[1745783471062,4.5331,1806.9,1806.8,2.97087]
[1745783471564,4.5331,1806.9,1806.8,1.38327]
[1745783481081,4.5331,1806.9,1806.8,3.09847]
[1745783482081,3.722,1806.9,1806.8,3.09847]
[1745783482278,2.55306,1806.9,1806.8,3.09847]
[1745783483186,1.3209,1806.9,1806.8,3.09847]
[1745783483374,1.7407,1807.3,1807.2,1.10633]
[1745783483578,2.541,1807.3,1807.2,1.10633]
[1745783484182,6.263,1807.3,1807.2,1.10633]
[1745783484987,6.263,1807.3,1807.2,1.38293]
[1745783497499,6.263,1807.3,1807.2,2.17373]
[1745783498400,5.4627,1807.3,1807.2,2.17373]
[1745783498601,3.722,1807.3,1807.2,2.99733]
[1745783498800,3.722,1807.3,1807.2,4.71893]
[1745783503806,3.722,1807.3,1807.2,2.17373]
[1745783506095,3.722,1807.3,1807.2,3.76053]
[1745783507397,3.722,1807.3,1807.2,8.76053]
[1745783511409,3.722,1807.3,1807.2,3.76053]
[1745783512318,3.722,1807.3,1807.2,7.26853]
[1745783513312,5.4314,1807.3,1807.2,7.26853]
[1745783517601,5.4314,1807.3,1807.2,3.76053]
[1745783519318,5.4314,1807.3,1807.2,6.96833]
[1745783521021,5.4314,1807.3,1807.2,3.76053]
[1745783521318,5.4314,1807.3,1807.2,6.96833]
[1745783526625,5.4314,1807.3,1807.2,3.76053]
[1745783526920,5.4314,1807.3,1807.2,6.96833]
[1745783528725,5.4314,1807.3,1807.2,4.59073]
[1745783530426,5.4314,1807.3,1807.2,6.17653]
[1745783532817,3.722,1807.3,1807.2,6.17653]
[1745783550440,4.571,1807.3,1807.2,6.17653]
[1745783552132,4.571,1807.3,1807.2,8.09773]
[1745783552643,4.571,1807.3,1807.2,4.59073]
[1745783559435,4.571,1807.3,1807.2,5.41413]
[1745783561936,4.571,1807.3,1807.2,7.00753]
[1745783568441,4.571,1807.3,1807.2,4.59073]
[1745783572648,4.571,1807.3,1807.2,1.38293]
[1745783572861,4.571,1807.3,1807.2,4.59073]
[1745783583471,9.571,1807.3,1807.2,0.2766]
[1745783584168,11.1443,1807.3,1807.2,0.2766]
[1745783585468,11.1443,1807.3,1807.2,1.38293]
[1745783585856,11.1443,1807.3,1807.2,4.59073]
[1745783586061,6.1443,1807.3,1807.2,4.59073]
[1745783586567,5.2953,1807.3,1807.2,4.59073]
[1745783586760,3.722,1807.3,1807.2,4.59073]
[1745783586960,3.722,1807.3,1807.2,6.29703]
[1745783598270,3.722,1807.3,1807.2,4.59073]
[1745783598571,4.5134,1807.3,1807.2,4.59073]
[1745783602076,4.5134,1807.3,1807.2,1.38293]
[1745783602277,4.5134,1807.3,1807.2,4.59073]
[1745783602577,4.5134,1807.3,1807.2,1.38293]
[1745783602977,4.5134,1807.3,1807.2,4.59073]
[1745783607275,4.5134,1807.3,1807.2,3.4844]
[1745783607478,4.5134,1807.3,1807.2,4.59073]
[1745783614688,4.5134,1807.3,1807.2,4.31413]
[1745783616091,4.5134,1807.3,1807.2,4.59073]
[1745783623990,4.5134,1807.3,1807.2,5.42203]
[1745783624898,3.722,1807.3,1807.2,5.42203]
[1745783625301,3.722,1807.3,1807.2,6.23393]
[1745783627601,5.4607,1807.3,1807.2,6.23393]
[1745783630690,5.4607,1807.3,1807.2,5.42203]
[1745783630896,5.4607,1807.3,1807.2,4.59073]
[1745783634004,5.4607,1807.3,1807.2,6.22403]
[1745783639006,5.4607,1807.3,1807.2,3.4844]
[1745783639708,5.4607,1807.3,1807.2,0.2766]
[1745783640206,5.4607,1807.3,1807.2,1.38293]
[1745783642907,3.722,1807.3,1807.2,1.38293]
[1745783643109,3.722,1807.3,1807.2,3.01793]
[1745783644607,3.722,1807.3,1807.2,11.22573]
[1745783645201,3.3648,1807.7,1807.6,1.10608]
[1745783645713,2.528,1807.7,1807.6,1.10608]
[1745783646211,3.722,1807.7,1807.6,1.10608]
[1745783646414,3.722,1807.7,1807.6,1.95558]
[1745783646906,3.722,1807.7,1807.6,2.23218]
[1745783648517,5.4163,1807.7,1807.6,2.23218]
[1745783649617,5.4163,1807.7,1807.6,1.38268]
[1745783650416,5.4163,1807.7,1807.6,0.2766]
[1745783650620,5.4163,1807.7,1807.6,1.38268]
[1745783651215,5.4163,1807.7,1807.6,0.2766]
[1745783651411,6.52232,1807.7,1807.6,0.2766]
[1745783652418,5.4163,1807.7,1807.6,0.2766]
[1745783653419,5.4163,1807.7,1807.6,1.38268]
[1745783654022,6.52232,1807.7,1807.6,1.38268]
[1745783654322,5.4163,1807.7,1807.6,1.38268]
[1745783657726,6.52232,1807.7,1807.6,1.38268]
[1745783658121,6.52232,1807.7,1807.6,0.2766]
[1745783659316,6.52232,1807.7,1807.6,1.38268]
[1745783660525,5.4163,1807.7,1807.6,1.38268]
[1745783662025,6.52232,1807.7,1807.6,1.38268]
[1745783665930,5.4163,1807.7,1807.6,1.38268]
[1745783666123,3.722,1807.7,1807.6,1.38268]
[1745783666526,3.722,1807.7,1807.6,6.17428]
[1745783666729,3.722,1807.7,1807.6,11.17428]
[1745783666927,3.722,1807.7,1807.6,6.17428]
[1745783667134,3.722,1807.7,1807.6,11.17428]
[1745783667828,3.722,1807.7,1807.6,6.17428]
[1745783676527,3.722,1807.7,1807.6,11.17428]
[1745783678438,3.722,1807.7,1807.6,6.17428]
[1745783695556,5.4334,1807.7,1807.6,6.97408]
[1745783699855,4.61051,1808.6,1808.2,1.10571]
[1745783700051,1.10553,1808.5,1808.2,4.31351]
[1745783700250,1.10553,1808.5,1808.2,3.2078]
[1745783700456,6.10553,1808.5,1808.2,3.2078]
[1745783700653,6.10553,1808.5,1808.2,4.31351]
[1745783700858,6.10553,1808.5,1808.2,3.2078]
[1745783701058,1.7291,1808.4,1808.2,3.2078]
[1745783701256,0.5816,1808.3,1808.2,3.2078]
[1745783701457,0.5816,1808.3,1808.2,4.31351]
[1745783701762,7.3107,1808.3,1808.2,4.31351]
[1745783702068,6.0327,1808.3,1808.2,4.31351]
[1745783704363,6.0327,1808.3,1808.0,3.2078]
[1745783704667,1.10585,1808.0,1807.7,4.31377]
[1745783704866,3.262,1807.9,1807.8,1.10594]
[1745783705053,6.984,1807.9,1807.8,1.10594]
[1745783705259,4.5813,1807.9,1807.8,1.10594]
[1745783705965,6.1831,1807.9,1807.8,1.10594]
[1745783708464,5.3238,1807.9,1807.8,1.10594]
[1745783711070,5.3238,1807.9,1807.8,4.31374]
[1745783711664,6.4297,1807.9,1807.5,3.505]
[1745783711875,1.7383,1807.8,1807.6,3.2078]
[1745783712066,1.7383,1807.8,1807.7,1.10602]
[1745783713166,5.4603,1807.8,1807.7,1.10602]
[1745783716278,5.4603,1807.8,1807.7,4.31382]
[1745783716671,5.4603,1807.8,1807.7,1.10602]
[1745783716870,5.4603,1807.8,1807.7,4.31382]
[1745783719078,5.4603,1807.8,1807.7,3.2078]
[1745783719380,5.4603,1807.8,1807.7,4.31382]
[1745783719572,5.4603,1807.8,1807.7,3.2078]
[1745783720080,6.2797,1807.8,1807.7,4.31382]
[1745783720282,6.2797,1807.8,1807.7,1.10602]
[1745783727487,6.2797,1807.8,1807.7,4.31382]
[1745783733483,6.2797,1807.8,1807.7,3.2078]
[1745783733689,6.2797,1807.8,1807.5,0.7884]
[1745783733892,1.5988,1807.7,1807.6,1.10608]
[1745783734091,5.3208,1807.7,1807.6,1.10608]
[1745783734786,6.1522,1807.7,1807.6,1.10608]
[1745783736495,3.722,1807.7,1807.6,1.10608]
[1745783736688,3.722,1807.7,1807.6,2.80548]
[1745783738094,3.722,1807.7,1807.6,7.80548]
[1745783739195,1.7303,1808.1,1808.0,1.10584]
[1745783739394,1.7303,1808.1,1808.0,4.31364]
[1745783740192,5.4523,1808.1,1808.0,4.31364]
[1745783741293,5.4523,1808.1,1808.0,3.2078]
[1745783742690,5.4523,1808.1,1808.0,4.31364]
[1745783750002,5.4523,1808.1,1808.0,1.10584]
[1745783751204,5.4523,1808.1,1807.8,3.2078]
[1745783751514,3.3341,1808.0,1807.9,1.1059]
[1745783752103,7.0561,1808.0,1807.9,1.1059]
[1745783753100,7.0561,1808.0,1807.8,3.2078]
[1745783753305,1.6166,1807.9,1807.8,4.31376]
[1745783754205,5.3386,1807.9,1807.8,4.31376]
[1745783754506,5.3386,1807.9,1807.8,5.97536]
[1745783757308,3.722,1807.9,1807.8,5.97536]
[1745783759210,5.3784,1807.9,1807.8,5.97536]
[1745783762903,3.722,1807.9,1807.8,5.97536]
[1745783763408,3.722,1807.9,1807.8,4.31376]
[1745783764499,4.5052,1807.9,1807.8,4.31376]
[1745783767913,5.3442,1807.9,1807.8,4.31376]
[1745783768414,5.3442,1807.9,1807.8,1.10596]
[1745783778022,3.722,1807.9,1807.8,4.31376]
[1745783778319,3.722,1807.9,1807.8,5.89736]
[1745783782224,1.5705,1808.2,1808.1,1.10577]
[1745783783217,5.2925,1808.2,1808.1,3.58277]
[1745783785820,5.2925,1808.2,1807.9,3.504]
[1745783785821,6.39824,1808.2,1807.9,3.504]
[1745783786023,2.4446,1808.1,1807.9,3.504]
[1745783786214,2.3791,1808.0,1807.9,3.504]
[1745783786417,2.3791,1808.0,1807.8,4.31372]
[1745783786721,1.5903,1807.9,1807.8,4.31372]
[1745783787115,5.3123,1807.9,1807.8,4.31372]
[1745783790527,5.3123,1807.9,1807.8,6.02222]
[1745783793130,5.3123,1807.9,1807.8,6.02226]
[1745783793430,6.1431,1807.9,1807.8,3.2078]
[1745783794225,6.1431,1807.9,1807.8,4.31376]
[1745783794435,6.1431,1807.9,1807.7,0.8429]
[1745783794632,1.6853,1807.8,1807.7,0.8429]
[1745783795129,5.4073,1807.8,1807.6,4.31384]
[1745783795531,2.5451,1807.7,1807.6,4.31384]
[1745783796129,6.2671,1807.7,1807.6,4.31384]
[1745783797429,6.2671,1807.7,1807.6,3.2078]
[1745783797931,7.1074,1807.7,1807.6,3.2078]
[1745783799535,7.1074,1807.7,1807.5,1.10614]
[1745783799722,1.6119,1807.6,1807.5,1.10614]
[1745783800130,5.3339,1807.6,1807.5,1.10614]
[1745783800833,3.722,1807.6,1807.5,1.10614]
[1745783801035,3.722,1807.6,1807.5,3.63174]
[1745783802534,5.4118,1807.6,1807.5,3.63174]
[1745783803130,5.4118,1807.6,1807.5,2.5256]
[1745783803336,5.4118,1807.6,1807.4,3.2078]
[1745783803642,2.4964,1807.5,1807.4,3.2078]
[1745783804134,6.2184,1807.5,1807.4,3.2078]
[1745783804335,7.32454,1807.5,1807.4,3.2078]
[1745783806037,6.2184,1807.5,1807.4,3.2078]
[1745783806635,6.2184,1807.5,1807.4,4.314]
[1745783807236,6.2184,1807.5,1807.4,3.2078]
[1745783807738,6.2184,1807.5,1807.4,4.314]
[1745783814344,5.4118,1807.5,1807.4,4.314]
[1745783814539,5.4118,1807.5,1807.4,5.9482]
[1745783814734,3.722,1807.5,1807.4,5.9482]
[1745783818146,1.6323,1807.7,1807.6,1.10608]
[1745783818442,0.8073,1807.8,1807.6,4.31388]
[1745783818642,2.4967,1807.9,1807.8,1.10596]
[1745783818843,2.4967,1807.9,1807.8,2.76986]
[1745783819052,6.2187,1807.9,1807.8,2.76986]
[1745783820458,6.2187,1807.9,1807.6,3.2078]
[1745783820757,1.6335,1807.8,1807.7,1.10602]
[1745783821157,5.3555,1807.8,1807.7,1.10602]
[1745783823254,5.3555,1807.8,1807.7,2.72952]
[1745783823450,3.722,1807.8,1807.7,2.72952]
[1745783823960,3.722,1807.8,1807.7,1.10602]
[1745783824462,4.5455,1807.8,1807.7,1.10602]
[1745783826360,3.722,1807.8,1807.7,2.82572]
[1745783827360,3.722,1807.8,1807.5,1.6523]
[1745783827557,4.40786,1807.7,1807.4,3.2078]
[1745783827756,1.6286,1807.6,1807.4,3.2078]
[1745783828058,5.3506,1807.6,1807.4,4.31396]
[1745783828656,1.6405,1807.5,1807.4,4.31396]
[1745783829163,5.3625,1807.5,1807.4,4.31396]
[1745783830964,5.3625,1807.5,1807.4,1.10616]
[1745783833262,5.3625,1807.5,1807.4,2.69976]
[1745783834664,6.46866,1807.5,1807.2,5.95499]
[1745783834963,3.2453,1807.4,1807.3,1.10626]
[1745783835164,6.9673,1807.4,1807.3,1.10626]
[1745783841969,6.9673,1807.4,1807.3,3.63786]
[1745783842268,5.3347,1807.4,1807.3,3.63786]
[1745783842566,5.3347,1807.4,1807.3,4.42876]
[1745783847777,3.722,1807.4,1807.3,4.42876]
[1745783853179,1.6119,1807.5,1807.4,1.1062]
[1745783853373,1.6119,1807.5,1807.4,5.9009]
[1745783854180,5.3339,1807.5,1807.4,5.9009]
[1745783859085,1.6119,1807.5,1807.4,5.9009]
[1745783860289,5.3339,1807.5,1807.4,5.9009]
[1745783862188,3.722,1807.5,1807.4,5.9009]
[1745783865889,4.5106,1807.5,1807.4,5.9009]
[1745783869393,4.5106,1807.5,1807.4,4.314]
[1745783880113,4.5106,1807.5,1807.4,1.1062]
[1745783880415,4.5106,1807.5,1807.4,4.314]
[1745783884320,4.5106,1807.5,1807.4,5.9591]
[1745783892724,3.722,1807.5,1807.4,5.9591]
[1745783894927,5.3917,1807.5,1807.4,5.9591]
[1745783900529,3.722,1807.5,1807.4,5.9591]
[1745783901129,0.864,1807.7,1807.6,1.10608]
[1745783901326,2.5769,1807.7,1807.6,1.10608]
[1745783901726,2.5769,1807.7,1807.6,2.76408]
[1745783902117,6.2989,1807.7,1807.6,5.97188]
[1745783906033,6.2989,1807.7,1807.6,4.31388]
[1745783913735,6.2989,1807.7,1807.6,5.88268]
[1745783915132,0.02363161,2519.5,1807.8,1.10596]
[1745783915133,4.82761,1808.4,1807.8,1.10596]
[1745783915333,3.3171,1808.3,1808.2,1.10571]
[1745783915634,3.3171,1808.3,1808.2,1.38211]
[1745783916236,7.0391,1808.3,1808.2,1.38211]
[1745783933753,7.0391,1808.3,1808.2,2.99441]
[1745783933947,6.2443,1808.3,1808.2,2.99441]
[1745783934146,3.722,1808.3,1808.2,3.85741]
[1745783935241,1.6464,1808.4,1808.3,1.10565]
[1745783935446,1.6464,1808.4,1808.3,3.50995]
[1745783936349,1.6164,1808.5,1808.4,1.10559]
[1745783936552,3.2911,1808.5,1808.4,1.10559]
[1745783936848,1.6747,1808.5,1808.4,2.71459]
[1745783940851,6.7108,1808.8,1808.4,1.609]
[1745783941050,3.2006,1808.7,1808.5,1.10548]
[1745783941251,1.6103,1808.6,1808.5,1.10548]
[1745783942153,5.3323,1808.6,1808.5,1.10548]
[1745783946355,5.3323,1808.6,1808.5,1.92508]
[1745783949760,5.3323,1808.6,1808.5,2.71948]
[1745783954864,5.3323,1808.6,1808.5,4.37898]
[1745783955162,1.6103,1808.6,1808.5,4.37898]
[1745783955962,1.6103,1808.6,1808.5,1.92508]
[1745783956163,5.3323,1808.6,1808.5,1.92508]
[1745783956658,6.4378,1808.6,1808.3,4.31342]
[1745783956859,2.52,1808.5,1808.3,4.31342]
[1745783957063,2.5408,1808.4,1808.3,4.31342]
[1745783957257,2.5408,1808.4,1808.3,4.58962]
[1745783957461,2.5408,1808.4,1808.3,3.484]
[1745783958060,6.2628,1808.4,1808.3,4.58965]
[1745783959464,3.722,1808.4,1808.3,3.484]
[1745783959667,3.722,1808.4,1808.3,4.58965]
[1745783960362,2.5284,1808.7,1808.6,1.10547]
[1745783961063,6.2504,1808.7,1808.6,1.10547]
[1745783961264,6.2504,1808.7,1808.5,2.5486]
[1745783961457,4.5472,1808.7,1808.6,1.10547]
[1745783966066,4.5472,1808.7,1808.4,10.0948]
[1745783966667,4.5472,1808.7,1808.6,1.10547]
[1745783966864,3.722,1808.7,1808.6,1.10547]
[1745783967370,3.722,1808.7,1808.6,1.92237]
[1745783968273,3.722,1808.7,1808.6,5.13017]
[1745783972774,3.722,1808.7,1808.6,1.92237]
[1745783973072,3.722,1808.7,1808.6,1.10547]
[1745783973469,3.722,1808.7,1808.6,4.31327]
[1745783973674,3.722,1808.7,1808.6,5.98367]
[1745783974265,1.6847,1809.1,1808.9,1.10523]
[1745783974869,1.6847,1809.1,1809.0,1.10522]
[1745783975173,5.4067,1809.1,1809.0,1.10522]
[1745783975874,3.722,1809.1,1809.0,1.10522]
[1745783976075,4.5426,1809.1,1809.0,1.10522]
[1745783976272,0.8206,1809.1,1809.0,1.10522]
[1745783976875,0.8206,1809.1,1809.0,4.31302]
[1745783977070,4.5426,1809.1,1809.0,5.98492]
[1745783977275,3.722,1809.1,1809.0,5.98492]
[1745783977475,3.722,1809.1,1809.0,6.84962]
[1745783978278,1.609,1809.3,1809.2,1.1051]
[1745783978477,1.609,1809.3,1809.1,2.4813]
[1745783978678,1.609,1809.3,1809.2,1.1051]
[1745783979081,5.331,1809.3,1809.2,1.1051]
[1745783979379,5.331,1809.3,1809.1,3.58642]
[1745783979577,5.331,1809.3,1809.2,1.1051]
[1745783980480,7.0367,1809.3,1809.2,1.1051]
[1745783981584,7.0367,1809.3,1809.2,1.3811]
[1745783986182,7.0367,1809.3,1809.2,0.276]
[1745783986382,8.14174,1809.3,1809.2,0.276]
[1745783988080,7.0367,1809.3,1809.2,1.3811]
[1745783990587,8.14174,1809.3,1809.2,1.3811]
[1745783990789,11.34954,1809.3,1809.2,1.3811]